fUST/lending_fUST_20250702
["ID","MTS","AMOUNT","RATE_DAILY","PERIOD"]
[369088648,1751466649636,-460.0,0.00020547,2]
[369088649,1751466649646,-3089.83,0.00020547,2]
[369088650,1751466649655,-537.5,0.00020547,2]
[369088651,1751466649664,-460.0,0.00020547,2]
[369088652,1751466649674,-1580.4,0.00020547,2]
[369088653,1751466649683,-3964.93,0.00020547,2]
[369088654,1751466649692,-504.75,0.00020547,2]
[369088655,1751466649702,-460.0,0.00020547,2]
[369088656,1751466649711,-460.0,0.00020547,2]
[369088657,1751466649720,-460.0,0.00020547,2]
[369088658,1751466649729,-460.0,0.00020547,2]
[369088659,1751466649738,-1972.09,0.00020547,2]
[369088660,1751466649748,-511.05,0.00020547,2]
[369088661,1751466649757,-4287.54,0.00020547,2]
[369088662,1751466649766,-460.0,0.00020547,2]
[369088663,1751466649775,-1703.05,0.00020547,2]
[369088664,1751466649784,-460.0,0.00020547,2]
[369088665,1751466649794,-460.0,0.00020547,2]
[369088666,1751466649803,-1074.93,0.00020547,2]
[369088667,1751466649813,-151.0,0.00020548,2]
[369088668,1751466649823,-151.0,0.00020548,2]
[369088669,1751466649833,-151.0,0.00020548,2]
[369088670,1751466649841,-151.0,0.00020548,2]
[369088671,1751466649851,-153.729187,0.0002059,2]
[369088672,1751466649860,-151.0,0.0002059,2]
[369088673,1751466649869,-3957.51,0.000206,2]
[369088674,1751466649879,-255.498817,0.000206,2]
[369088675,1751466649888,-241.411503,0.000206,2]
[369088676,1751466649898,-241.411503,0.000206,2]
[369088677,1751466649907,-430.359968,0.000206,2]
[369088678,1751466649917,-430.359968,0.000206,2]
[369088679,1751466649926,-276.421701,0.000206,2]
[369088680,1751466649936,-168.0,0.00020614,2]
[369088681,1751466649945,-151.0,0.00020624,2]
[369088682,1751466649955,-169.565112,0.00020624,2]
[369088683,1751466649965,-150.0,0.0002065,2]
[369088684,1751466649974,-5709.94641149,0.00020659,3]
[369088685,1751466649984,-169.4,0.00020682,4]
[369088686,1751466649994,-151.0,0.000207,4]
[369088687,1751466650003,-151.0,0.000207,4]
[369088688,1751466650013,-168.0,0.00020707,2]
[369088689,1751466650022,-926.0608359,0.00020721,2]
[369088690,1751466650031,-191.092026,0.00020821,2]
[369088691,1751466650170,-191.092026,0.00020821,2]
[369088692,1751466650180,-187.68442,0.00020821,2]
[369088693,1751466650190,-460.0,0.00020821,2]
[369088694,1751466650200,-151.0,0.00020821,2]
[369088695,1751466650211,-500.0,0.00020821,2]
[369088696,1751466650221,-151.0,0.00020821,2]
[369088697,1751466650231,-151.0,0.00020821,2]
[369088698,1751466650241,-151.0,0.00020821,2]
[369088699,1751466650251,-151.0,0.00020821,2]
[369088700,1751466650261,-274.884563,0.00020821,2]
[369088701,1751466650271,-460.0,0.00020821,2]
[369088702,1751466650281,-460.0,0.00020821,2]
[369088703,1751466650291,-151.0,0.00020821,2]
[369088704,1751466650301,-592.94,0.00020821,2]
[369088705,1751466650311,-431.47636785,0.00020821,2]
[369088706,1751466650321,-460.0,0.00020821,2]
[369088707,1751466650331,-460.0,0.00020821,2]
[369088708,1751466650340,-561.97,0.00020821,2]
[369088709,1751466650349,-430.359968,0.00020821,2]
[369088710,1751466650359,-430.359977,0.00020821,2]
[369088711,1751466650368,-613.15,0.00020821,2]
[369088712,1751466650378,-1206.3,0.00020821,2]
[369088713,1751466650387,-460.0,0.00020821,2]
[369088714,1751466650396,-608.16,0.00020821,2]
[369088715,1751466650405,-507.74,0.00020821,2]
[369088716,1751466650415,-1038.44,0.00020821,2]
[369088717,1751466650424,-605.0,0.00020821,2]
[369088718,1751466650433,-500.0,0.00020821,2]
[369088719,1751466650442,-1714.6,0.00020821,2]
[369088720,1751466650453,-938.5,0.00020821,2]
[369088721,1751466650463,-460.0,0.00020821,2]
[369088722,1751466650473,-460.0,0.00020821,2]
[369088723,1751466650485,-460.0,0.00020821,2]
[369088724,1751466650494,-4082.07,0.00020821,2]
[369088725,1751466650504,-532.57,0.00020821,2]
[369088726,1751466650513,-548.32,0.00020821,2]
[369088727,1751466650522,-1629.44,0.00020821,2]
[369088728,1751466650532,-460.0,0.00020821,2]
[369088729,1751466650542,-973.5,0.00020821,2]
[369088730,1751466650551,-460.0,0.00020821,2]
[369088731,1751466650563,-1421.39,0.00020821,2]
[369088732,1751466650572,-460.0,0.00020821,2]
[369088733,1751466650582,-2500.66,0.00020821,2]
[369088734,1751466650592,-2690.46,0.00020821,2]
[369088735,1751466650602,-4321.4,0.00020821,2]
[369088736,1751466650611,-460.0,0.00020821,2]
[369088737,1751466650622,-460.0,0.00020821,2]
[369088738,1751466650631,-614.07,0.00020821,2]
[369088739,1751466650641,-1673.25,0.00020821,2]
[369088740,1751466650651,-709.4,0.00020821,2]
[369088741,1751466650660,-460.0,0.00020821,2]
[369088742,1751466650669,-460.0,0.00020821,2]
[369088743,1751466650679,-460.0,0.00020821,2]
[369088744,1751466650688,-600.92,0.00020821,2]
[369088745,1751466650697,-460.0,0.00020821,2]
[369088746,1751466650707,-1068.4,0.00020821,2]
[369088747,1751466650716,-576.49,0.00020821,2]
[369088748,1751466650725,-477.75,0.00020821,2]
[369088749,1751466650734,-936.1,0.00020821,2]
[369088750,1751466650744,-2073.05,0.00020821,2]
[369088751,1751466650753,-2623.17,0.00020821,2]
[369088752,1751466650763,-938.4,0.00020821,2]
[369088753,1751466650772,-600.34,0.00020821,2]
[369088754,1751466650781,-460.0,0.00020821,2]
[369088755,1751466650791,-566.41,0.00020821,2]
[369088756,1751466650800,-460.0,0.00020821,2]
[369088757,1751466650809,-3089.83,0.00020821,2]
[369088758,1751466650821,-537.5,0.00020821,2]
[369088759,1751466650831,-460.0,0.00020821,2]
[369088760,1751466650840,-1580.4,0.00020821,2]
[369088761,1751466650849,-3964.93,0.00020821,2]
[369088762,1751466650859,-504.75,0.00020821,2]
[369088763,1751466650869,-460.0,0.00020821,2]
[369088764,1751466650878,-460.0,0.00020821,2]
[369088765,1751466650887,-460.0,0.00020821,2]
[369088766,1751466650897,-460.0,0.00020821,2]
[369088767,1751466650906,-1972.09,0.00020821,2]
[369088768,1751466650915,-511.05,0.00020821,2]
[369088769,1751466650925,-4287.54,0.00020821,2]
[369088770,1751466650934,-460.0,0.00020821,2]
[369088771,1751466650943,-1703.05,0.00020821,2]
[369088772,1751466650952,-460.0,0.00020821,2]
[369088773,1751466650962,-460.0,0.00020821,2]
[369088774,1751466650972,-1074.93,0.00020821,2]
[369088775,1751466650981,-168.0,0.00020828,2]
[369088776,1751466650991,-168.0,0.00020855,2]
[369088777,1751466651000,-1500.0,0.00020868,2]
[369088778,1751466651010,-1500.0,0.00020868,2]
[369088779,1751466651020,-15023.97236718,0.00020869,2]
[369088780,1751466651030,-151.0,0.000209,4]
[369088781,1751466651039,-151.0,0.000209,4]
[369088782,1751466651050,-191.092026,0.00020909,2]
[369088783,1751466651060,-191.092026,0.00020909,2]
[369088784,1751466651069,-151.0,0.00020909,2]
[369088785,1751466651079,-151.0,0.00020909,2]
[369088786,1751466651089,-5709.94641149,0.00020934,4]
[369088787,1751466651098,-1500.0,0.00020978,2]
[369088788,1751466651107,-10000.0,0.00021,2]
[369088789,1751466651116,-1500.0,0.00021,2]
[369088790,1751466651128,-3000.0,0.00021,2]
[369088791,1751466651138,-269.34413525,0.00021,2]
[369088792,1751466651147,-5262.5542771,0.00021,2]
[369088793,1751466651156,-201.47269213,0.00021,2]
[369088794,1751466651165,-3000.0,0.0002101,2]
[369088795,1751466651174,-3000.0,0.0002102,2]
[369088796,1751466651183,-255.498816,0.0002102,2]
[369088797,1751466651193,-241.411503,0.0002102,2]
[369088798,1751466651202,-241.411498,0.0002102,2]
[369088799,1751466651211,-3000.0,0.0002103,2]
[369088800,1751466651220,-3000.0,0.0002104,2]
[369088801,1751466651230,-3000.0,0.0002105,2]
[369088802,1751466651239,-3000.0,0.0002106,2]
[369088803,1751466651248,-3000.0,0.0002107,2]
[369088804,1751466651257,-3000.0,0.0002108,2]
[369088805,1751466651267,-151.0,0.0002108,2]
[369088806,1751466651276,-650.0,0.00021085,2]
[369088807,1751466651285,-3000.0,0.0002109,2]
[369088808,1751466651294,-191.092026,0.00021095,2]
[369088809,1751466651303,-191.092018,0.00021095,2]
[369088810,1751466651312,-460.0,0.00021095,2]
[369088811,1751466651322,-460.0,0.00021095,2]
[369088812,1751466651331,-240.0,0.00021095,2]
[369088813,1751466651340,-460.0,0.00021095,2]
[369088814,1751466651349,-592.94,0.00021095,2]
[369088815,1751466651358,-460.0,0.00021095,2]
[369088816,1751466651369,-460.0,0.00021095,2]
[369088817,1751466651378,-561.97,0.00021095,2]
[369088818,1751466651387,-613.15,0.00021095,2]
[369088819,1751466651397,-1206.3,0.00021095,2]
[369088820,1751466651406,-460.0,0.00021095,2]
[369088821,1751466651416,-608.16,0.00021095,2]
[369088822,1751466651426,-507.74,0.00021095,2]
[369088823,1751466651436,-1038.44,0.00021095,2]
[369088824,1751466651446,-1714.6,0.00021095,2]
[369088825,1751466651455,-938.5,0.00021095,2]
[369088826,1751466651464,-460.0,0.00021095,2]
[369088827,1751466651473,-460.0,0.00021095,2]
[369088828,1751466651483,-460.0,0.00021095,2]
[369088829,1751466651496,-4082.07,0.00021095,2]
[369088830,1751466651505,-532.57,0.00021095,2]
[369088831,1751466651514,-548.32,0.00021095,2]
[369088832,1751466651523,-1629.44,0.00021095,2]
[369088833,1751466651533,-460.0,0.00021095,2]
[369088834,1751466651543,-973.5,0.00021095,2]
[369088835,1751466651552,-460.0,0.00021095,2]
[369088836,1751466651561,-1421.39,0.00021095,2]
[369088837,1751466651571,-460.0,0.00021095,2]
[369088838,1751466651581,-2500.66,0.00021095,2]
[369088839,1751466651590,-2690.46,0.00021095,2]
[369088840,1751466651599,-460.0,0.00021095,2]
[369088841,1751466651608,-4321.4,0.00021095,2]
[369088842,1751466651620,-460.0,0.00021095,2]
[369088843,1751466651629,-614.07,0.00021095,2]
[369088844,1751466651639,-709.4,0.00021095,2]
[369088845,1751466651649,-1673.25,0.00021095,2]
[369088846,1751466651659,-460.0,0.00021095,2]
[369088847,1751466651668,-460.0,0.00021095,2]
[369088848,1751466651678,-460.0,0.00021095,2]
[369088849,1751466651687,-600.92,0.00021095,2]
[369088850,1751466651697,-460.0,0.00021095,2]
[369088851,1751466651719,-1068.4,0.00021095,2]
[369088852,1751466651728,-576.49,0.00021095,2]
[369088853,1751466651738,-477.75,0.00021095,2]
[369088854,1751466651748,-936.1,0.00021095,2]
[369088855,1751466651758,-2073.05,0.00021095,2]
[369088856,1751466651768,-2623.17,0.00021095,2]
[369088857,1751466651779,-938.4,0.00021095,2]
[369088858,1751466651789,-600.34,0.00021095,2]
[369088859,1751466651799,-460.0,0.00021095,2]
[369088860,1751466651809,-566.41,0.00021095,2]
[369088861,1751466651818,-460.0,0.00021095,2]
[369088862,1751466651827,-3089.83,0.00021095,2]
[369088863,1751466651837,-537.5,0.00021095,2]
[369088864,1751466651846,-460.0,0.00021095,2]
[369088865,1751466651856,-1580.4,0.00021095,2]
[369088866,1751466651865,-3964.93,0.00021095,2]
[369088867,1751466651876,-504.75,0.00021095,2]
[369088868,1751466651885,-460.0,0.00021095,2]
[369088869,1751466651894,-460.0,0.00021095,2]
[369088870,1751466651903,-460.0,0.00021095,2]
[369088871,1751466651913,-460.0,0.00021095,2]
[369088872,1751466651922,-1972.09,0.00021095,2]
[369088873,1751466651932,-511.05,0.00021095,2]
[369088874,1751466651941,-4287.54,0.00021095,2]
[369088875,1751466651950,-460.0,0.00021095,2]
[369088876,1751466651959,-1703.05,0.00021095,2]
[369088877,1751466651969,-460.0,0.00021095,2]
[369088878,1751466651978,-460.0,0.00021095,2]
[369088879,1751466651988,-1074.93,0.00021095,2]
[369088880,1751466651997,-3000.0,0.000211,2]
[369088881,1751466652007,-168.0,0.00021105,2]
[369088882,1751466652017,-3000.0,0.0002111,2]
[369088883,1751466652027,-3000.0,0.0002112,2]
[369088884,1751466652036,-3000.0,0.0002113,2]
[369088885,1751466652047,-3000.0,0.0002114,2]
[369088886,1751466652056,-306.0,0.00021146,2]
[369088887,1751466652066,-179.8295263,0.00021146,2]
[369088888,1751466652076,-5056.219996,0.0002115,2]
[369088889,1751466652086,-5709.94641149,0.0002121,4]
[369088890,1751466652096,-223.0315306,0.00021212,2]
[369088891,1751466652105,-169.4,0.00021252,4]
[369088892,1751466652115,-926.0608359,0.00021269,2]
[369088893,1751466652126,-650.0,0.00021273,2]
[369088894,1751466652135,-460.0,0.00021369,2]
[369088895,1751466652145,-460.0,0.00021369,2]
[369088896,1751466652154,-460.0,0.00021369,2]
[369088897,1751466652163,-592.94,0.00021369,2]
[369088898,1751466652173,-460.0,0.00021369,2]
[369088899,1751466652182,-312.37349419,0.00021369,2]
[369088900,1751466652191,-561.97,0.00021369,2]
[369088901,1751466652201,-613.15,0.00021369,2]
[369088902,1751466652210,-1206.3,0.00021369,2]
[369088903,1751466652220,-460.0,0.00021369,2]
[369088904,1751466652230,-608.16,0.00021369,2]
[369088905,1751466652239,-507.74,0.00021369,2]
[369088906,1751466652249,-1038.44,0.00021369,2]
[369088907,1751466652258,-1714.6,0.00021369,2]
[369088908,1751466652267,-938.5,0.00021369,2]
[369088909,1751466652276,-460.0,0.00021369,2]
[369088910,1751466652286,-460.0,0.00021369,2]
[369088911,1751466652295,-460.0,0.00021369,2]
[369088912,1751466652306,-4082.07,0.00021369,2]
[369088913,1751466652315,-532.57,0.00021369,2]
[369088914,1751466652325,-548.32,0.00021369,2]
[369088915,1751466652334,-1629.44,0.00021369,2]
[369088916,1751466652343,-460.0,0.00021369,2]
[369088917,1751466652353,-973.5,0.00021369,2]
[369088918,1751466652363,-460.0,0.00021369,2]
[369088919,1751466652373,-1421.39,0.00021369,2]
[369088920,1751466652383,-460.0,0.00021369,2]
[369088921,1751466652392,-2500.66,0.00021369,2]
[369088922,1751466652401,-2690.46,0.00021369,2]
[369088923,1751466652410,-460.0,0.00021369,2]
[369088924,1751466652419,-4321.4,0.00021369,2]
[369088925,1751466652428,-460.0,0.00021369,2]
[369088926,1751466652437,-614.07,0.00021369,2]
[369088927,1751466652446,-709.4,0.00021369,2]
[369088928,1751466652455,-1673.25,0.00021369,2]
[369088929,1751466652465,-460.0,0.00021369,2]
[369088930,1751466652474,-460.0,0.00021369,2]
[369088931,1751466652486,-460.0,0.00021369,2]
[369088932,1751466652497,-600.92,0.00021369,2]
[369088933,1751466652506,-460.0,0.00021369,2]
[369088934,1751466652515,-1068.4,0.00021369,2]
[369088935,1751466652525,-576.49,0.00021369,2]
[369088936,1751466652534,-477.75,0.00021369,2]
[369088937,1751466652543,-936.1,0.00021369,2]
[369088938,1751466652552,-2073.05,0.00021369,2]
[369088939,1751466652563,-2623.17,0.00021369,2]
[369088940,1751466652573,-938.4,0.00021369,2]
[369088941,1751466652582,-600.34,0.00021369,2]
[369088942,1751466652592,-460.0,0.00021369,2]
[369088943,1751466652602,-566.41,0.00021369,2]
[369088944,1751466652611,-460.0,0.00021369,2]
[369088945,1751466652623,-3089.83,0.00021369,2]
[369088946,1751466652632,-537.5,0.00021369,2]
[369088947,1751466652641,-418.17851885,0.00021369,2]
[369088948,1751466652652,-1580.4,0.00021369,2]
[369088949,1751466652662,-3964.93,0.00021369,2]
[369088950,1751466652671,-504.75,0.00021369,2]
[369088951,1751466652682,-460.0,0.00021369,2]
[369088952,1751466652697,-460.0,0.00021369,2]
[369088953,1751466652707,-451.21479425,0.00021369,2]
[369088954,1751466652731,-8.78520575,0.00021369,2]
[369088955,1751466652742,-460.0,0.00021369,2]
[369088956,1751466652752,-1972.09,0.00021369,2]
[369088957,1751466652762,-511.05,0.00021369,2]
[369088958,1751466652771,-2319.51094681,0.00021369,2]
[369088959,1751466652782,-500.0,0.00021369,2]
[369088960,1751466652958,-154.57,0.00018,2]
[369088961,1751466652967,-460.0,0.0002,2]
[369088962,1751466652976,-460.0,0.00020273,2]
[369088963,1751466652985,-18.17,0.00020547,2]
[369088964,1751466653267,1280.0,0.00027397,120]
[369088965,1751466666762,1280.0,0.00027397,120]
[369088966,1751466677735,1280.0,0.00027397,120]
[369088967,1751466696021,1280.0,0.00027397,120]
[369088968,1751466705557,1280.0,0.00027397,120]
[369088969,1751466749293,1280.0,0.00027397,120]
[369088970,1751466760374,1280.0,0.00027397,120]
[369088971,1751466770178,1280.0,0.00027397,120]
[369088972,1751466788616,1130.64,0.00027397,120]
[369088974,1751467095954,182.0,0.000272,120]
[369088975,1751467254284,793.7,0.00027397,120]
[369088980,1751467357984,400.926962,0.00013699,2]
[369089007,1751467610312,10000.0,0.0001644,2]
[369089008,1751467617240,10000.0,0.0001644,2]
[369089009,1751467623517,10000.0,0.0001644,2]
[369089010,1751467630360,10000.0,0.0001644,2]
[369089011,1751467637538,10000.0,0.0001644,2]
[369089012,1751467645893,10000.0,0.0001644,2]
[369089013,1751467652604,10000.0,0.0001644,2]
[369089014,1751467654090,-300.0,0.0001697,2]
[369089015,1751467654112,-300.0,0.00016971,2]
[369089016,1751467654134,-1200.0,0.00016971,2]
[369089017,1751467654154,-107.23812766,0.00016971,2]
[369089018,1751467659676,10000.0,0.0001644,2]
[369089019,1751467668528,3296.37458827,0.0001644,2]
[369089020,1751467677671,10000.0,0.000163,2]
[369089030,1751467753665,6564.0,0.000163,2]
[369089081,1751467832511,-300.0,0.00016969,2]
[369089082,1751467832521,-191.98579731,0.00016969,2]
[369089083,1751467832532,-108.01420269,0.00016969,2]
[369089084,1751467832542,-300.0,0.00016969,2]
[369089085,1751467832552,-917.26224661,0.00016969,2]
[369089086,1751467832585,-282.73775339,0.00016969,2]
[369089087,1751467832595,-300.0,0.00016969,2]
[369089088,1751467832604,-532.41466355,0.0001697,2]
[369089089,1751467832613,-311.36062592,0.00016971,2]
[369089090,1751467832625,-4.63937408,0.00016971,2]
[369089091,1751467832635,-173.0,0.00017014,3]
[369089092,1751467832645,-4118.83271012,0.00017494,2]
[369089100,1751467838269,-500.0,0.00016969,2]
[369089101,1751467838279,-500.0,0.00016969,2]
[369089103,1751467838288,-500.0,0.00016969,2]
[369089105,1751467838298,-500.0,0.00016969,2]
[369089107,1751467838308,-500.0,0.00016969,2]
[369089109,1751467838317,-500.0,0.00016969,2]
[369089111,1751467838327,-500.0,0.00016969,2]
[369089113,1751467838337,-500.0,0.00016969,2]
[369089115,1751467838347,-296.4720842,0.00016969,2]
[369089117,1751467838357,-500.0,0.00016969,2]
[369089119,1751467838367,-500.0,0.00016969,2]
[369089121,1751467838376,-238.65672953,0.00016969,2]
[369089123,1751467838386,-500.0,0.00016969,2]
[369089125,1751467838395,-500.0,0.00016969,2]
[369089127,1751467838405,-195.11490804,0.00016969,2]
[369089129,1751467838414,-500.0,0.00016969,2]
[369089131,1751467838424,-500.0,0.00016969,2]
[369089133,1751467838434,-500.0,0.00016969,2]
[369089135,1751467838444,-500.0,0.00016969,2]
[369089136,1751467838454,-510.60672397,0.00016969,2]
[369089137,1751467838463,-500.0,0.00016969,2]
[369089138,1751467838473,-500.0,0.00016969,2]
[369089139,1751467838483,-500.0,0.00016969,2]
[369089140,1751467838493,-500.0,0.00016969,2]
[369089141,1751467838503,-500.0,0.00016969,2]
[369089142,1751467838513,-20781.16728988,0.00017494,2]
[369089143,1751467838523,-186.159461,0.00017586,2]
[369089144,1751467838532,-4851.5350879,0.00017645,2]
[369089145,1751467838542,-3921.22195786,0.000179,2]
[369089146,1751467838553,-3921.2219578,0.00018176,2]
[369089147,1751467838562,-185.10112502,0.00018352,2]
[369089148,1751467838573,-500.0,0.00018352,2]
[369089149,1751467838583,-414.3355064,0.00018451,2]
[369089150,1751467838592,-500.0,0.00018451,2]
[369089151,1751467838602,-246.6607734,0.00018451,2]
[369089152,1751467838611,-500.0,0.00018451,2]
[369089153,1751467838621,-500.0,0.00018451,2]
[369089154,1751467838630,-500.0,0.00018451,2]
[369089155,1751467838640,-184.8776472,0.00018451,2]
[369089156,1751467838652,-3921.2219578,0.00018452,2]
[369089157,1751467838661,-207.4,0.00018474,2]
[369089158,1751467838671,-690.642,0.00018474,2]
[369089159,1751467838680,-716.195754,0.00018529,2]
[369089160,1751467838689,-256.0,0.00018535,2]
[369089161,1751467838700,-193.0,0.00018535,2]
[369089162,1751467838709,-420.0,0.00018535,2]
[369089163,1751467838719,-742.6949969,0.00018584,2]
[369089164,1751467838729,-613.0,0.00018627,2]
[369089165,1751467838743,-770.17471178,0.00018639,2]
[369089166,1751467838753,-798.67117612,0.00018694,2]
[369089167,1751467838763,-949.50601118,0.00018704,2]
[369089168,1751467838773,-3921.2219578,0.00018728,2]
[369089169,1751467838782,-828.22200964,0.00018749,2]
[369089170,1751467838792,-1003.9825915,0.00018787,2]
[369089171,1751467838802,-5000.0,0.00018789,2]
[369089172,1751467838813,-1500.0,0.00018789,2]
[369089173,1751467838823,-1500.0,0.00018789,2]
[369089174,1751467838833,-1500.0,0.00018789,2]
[369089175,1751467838843,-1500.0,0.00018789,2]
[369089176,1751467838856,-1500.0,0.00018789,2]
[369089177,1751467838867,-1000.0,0.00018789,2]
[369089178,1751467838880,-25000.0,0.00018789,2]
[369089179,1751467838895,-3325.38383853,0.00018789,2]
[369089180,1751467838904,-248517.43021059,0.000188,2]
[369089181,1751467838915,-858.86622399,0.00018804,2]
[369089182,1751467838926,-890.64427428,0.00018859,2]
[369089183,1751467838937,-4702.43638738,0.000189,2]
[369089184,1751467838951,-923.59811243,0.00018914,2]
[369089185,1751467838961,-3921.2219578,0.00019003,2]
[369089186,1751467838970,-1650.69713677,0.00019078,2]
[369089187,1751467838981,-460.0,0.00019178,2]
[369089188,1751467838991,-460.0,0.00019178,2]
[369089189,1751467839002,-460.0,0.00019178,2]
[369089190,1751467839011,-460.0,0.00019178,2]
[369089191,1751467839022,-496.38,0.00019178,2]
[369089192,1751467839033,-460.0,0.00019178,2]
[369089193,1751467839042,-460.0,0.00019178,2]
[369089194,1751467839053,-460.0,0.00019178,2]
[369089195,1751467839063,-460.0,0.00019178,2]
[369089196,1751467839072,-460.0,0.00019178,2]
[369089197,1751467839082,-460.0,0.00019178,2]
[369089198,1751467839091,-460.0,0.00019178,2]
[369089199,1751467839101,-460.0,0.00019178,2]
[369089200,1751467839110,-460.0,0.00019178,2]
[369089201,1751467839119,-460.0,0.00019178,2]
[369089202,1751467839129,-486.23,0.00019178,2]
[369089203,1751467839138,-460.0,0.00019178,2]
[369089204,1751467839147,-460.0,0.00019178,2]
[369089205,1751467839157,-460.0,0.00019178,2]
[369089206,1751467839166,-460.0,0.00019178,2]
[369089207,1751467839175,-543.32,0.00019178,2]
[369089208,1751467839185,-460.0,0.00019178,2]
[369089209,1751467839194,-460.0,0.00019178,2]
[369089210,1751467839204,-523.73,0.00019178,2]
[369089211,1751467839213,-460.0,0.00019178,2]
[369089212,1751467839223,-595.77,0.00019178,2]
[369089213,1751467839232,-460.0,0.00019178,2]
[369089214,1751467839242,-460.0,0.00019178,2]
[369089215,1751467839252,-500.0,0.00019178,2]
[369089216,1751467839262,-523.86,0.00019178,2]
[369089217,1751467839272,-460.0,0.00019178,2]
[369089218,1751467839282,-460.0,0.00019178,2]
[369089219,1751467839292,-460.0,0.00019178,2]
[369089220,1751467839301,-460.0,0.00019178,2]
[369089221,1751467839311,-535.27,0.00019178,2]
[369089222,1751467839320,-873.47,0.00019178,2]
[369089223,1751467839330,-460.0,0.00019178,2]
[369089224,1751467839340,-460.0,0.00019178,2]
[369089225,1751467839350,-460.0,0.00019178,2]
[369089226,1751467839360,-460.0,0.00019178,2]
[369089227,1751467839370,-460.0,0.00019178,2]
[369089228,1751467839382,-460.0,0.00019178,2]
[369089229,1751467839392,-460.0,0.00019178,2]
[369089230,1751467839402,-339.98,0.00019178,2]
[369089231,1751467839412,-552.6,0.00019178,2]
[369089232,1751467839422,-489.84,0.00019178,2]
[369089233,1751467839431,-460.0,0.00019178,2]
[369089234,1751467839442,-460.0,0.00019178,2]
[369089235,1751467839453,-460.0,0.00019178,2]
[369089236,1751467839462,-460.0,0.00019178,2]
[369089237,1751467839472,-474.80013258,0.00019178,2]
[369089238,1751467839481,-460.0,0.00019178,2]
[369089239,1751467839491,-460.0,0.00019178,2]
[369089240,1751467839500,-505.36,0.00019178,2]
[369089241,1751467839511,-460.0,0.00019178,2]
[369089242,1751467839520,-460.0,0.00019178,2]
[369089243,1751467839530,-515.2,0.00019178,2]
[369089244,1751467839540,-269.8904321,0.00019178,2]
[369089245,1751467839742,-1517.33,0.00019178,2]
[369089246,1751467839752,-460.0,0.00019178,2]
[369089247,1751467839762,-460.0,0.00019178,2]
[369089248,1751467839772,-159.29710545,0.00019178,2]
[369089249,1751467839794,-460.0,0.00019178,2]
[369089250,1751467839815,-460.0,0.00019178,2]
[369089251,1751467839826,-460.0,0.00019178,2]
[369089252,1751467839838,-460.0,0.00019178,2]
[369089253,1751467839850,-778.63,0.00019178,2]
[369089254,1751467839864,-1716.24,0.00019178,2]
[369089255,1751467839875,-460.0,0.00019178,2]
[369089256,1751467839887,-460.0,0.00019178,2]
[369089257,1751467839897,-2873.38,0.00019178,2]
[369089258,1751467839910,-460.0,0.00019178,2]
[369089259,1751467839920,-460.0,0.00019178,2]
[369089260,1751467839933,-460.0,0.00019178,2]
[369089261,1751467839946,-460.0,0.00019178,2]